[Event "MČR v bleskovém šachu družstev 2019"]
[Site "Teplice, Czech Republic"]
[Date "2019.09.14"]
[Round "3.13"]
[White "Krejci, Jan"]
[Black "Bernasek, Jan"]
[Result "1/2-1/2"]
[TimeControl "3 mim. + 2 s"]
[WhiteTitle "GM"]
[BlackTitle "GM"]
[WhiteFideId "322156"]
[BlackFideId "311995"]
[WhiteElo "2527"]
[BlackElo "2526"]

1. c4 {[%clk 00:03:02]} {[%emt 00:00:02]} c5 {[%clk 00:03:02]} {[%emt
00:00:02]} 2. Nf3 {[%clk 00:03:01]} {[%emt 00:00:03]} Nc6 {[%clk 00:03:03]}
{[%emt 00:00:01]} 3. g3 {[%clk 00:03:02]} g6 {[%clk 00:03:02]} {[%emt
00:00:04]} 4. Bg2 {[%clk 00:03:03]} {[%emt 00:00:02]} Bg7 {[%clk 00:03:03]} 5.
O-O {[%clk 00:03:03]} {[%emt 00:00:03]} e6 {[%clk 00:03:05]} 6. d3 {[%clk
00:03:02]} {[%emt 00:00:04]} Nge7 {[%clk 00:03:05]} {[%emt 00:00:01]} 7. Nc3
{[%clk 00:03:02]} {[%emt 00:00:02]} d5 {[%clk 00:03:05]} {[%emt 00:00:02]} 8.
cxd5 {[%clk 00:03:01]} {[%emt 00:00:03]} exd5 {[%clk 00:03:06]} {[%emt
00:00:01]} 9. Bf4 {[%clk 00:02:58]} {[%emt 00:00:04]} O-O {[%clk 00:02:58]}
{[%emt 00:00:11]} 10. Qc1 {[%clk 00:02:47]} {[%emt 00:00:13]} Re8 {[%clk
00:02:55]} {[%emt 00:00:05]} 11. Nb5 {[%clk 00:02:41]} {[%emt 00:00:09]} Qb6
{[%clk 00:02:30]} {[%emt 00:00:27]} 12. Nc7 {[%clk 00:02:16]} {[%emt 00:00:27]}
Be6 {[%clk 00:02:30]} {[%emt 00:00:01]} 13. Nxa8 {[%clk 00:02:12]} {[%emt
00:00:07]} Rxa8 {[%clk 00:02:30]} {[%emt 00:00:01]} 14. Rb1 {[%clk 00:02:08]}
{[%emt 00:00:07]} d4 {[%clk 00:02:20]} {[%emt 00:00:12]} 15. a3 {[%clk
00:02:09]} {[%emt 00:00:01]} Re8 {[%clk 00:02:12]} {[%emt 00:00:09]} 16. Bd6
{[%clk 00:01:54]} {[%emt 00:00:17]} Nf5 {[%clk 00:01:48]} {[%emt 00:00:27]} 17.
Bxc5 {[%clk 00:01:53]} {[%emt 00:00:03]} Qb5 {[%clk 00:01:47]} {[%emt
00:00:02]} 18. Nd2 {[%clk 00:01:43]} {[%emt 00:00:12]} Rc8 {[%clk 00:01:43]}
{[%emt 00:00:05]} 19. Ne4 {[%clk 00:01:28]} {[%emt 00:00:17]} Ne5 {[%clk
00:01:26]} {[%emt 00:00:19]} 20. Qf4 {[%clk 00:01:12]} {[%emt 00:00:18]} Rxc5
{[%clk 00:01:22]} {[%emt 00:00:07]} 21. Nxc5 {[%clk 00:01:13]} {[%emt
00:00:01]} Qxc5 {[%clk 00:01:23]} 22. Rfc1 {[%clk 00:01:13]} {[%emt 00:00:01]}
Qb6 {[%clk 00:01:18]} {[%emt 00:00:07]} 23. b4 {[%clk 00:01:14]} {[%emt
00:00:01]} h5 {[%clk 00:01:09]} {[%emt 00:00:11]} 24. Rc5 {[%clk 00:01:14]}
{[%emt 00:00:02]} Nd7 {[%clk 00:01:05]} {[%emt 00:00:06]} 25. Rc2 {[%clk
00:01:10]} {[%emt 00:00:05]} Nf6 {[%clk 00:00:59]} {[%emt 00:00:08]} 26. Qc7
{[%clk 00:01:09]} {[%emt 00:00:03]} Bd5 {[%clk 00:00:44]} {[%emt 00:00:17]} 27.
Qxb6 {[%clk 00:01:05]} {[%emt 00:00:07]} axb6 {[%clk 00:00:45]} 28. Rc7 {[%clk
00:01:02]} {[%emt 00:00:05]} Nd6 {[%clk 00:00:36]} {[%emt 00:00:10]} 29. Rbc1
{[%clk 00:00:55]} {[%emt 00:00:09]} Bxg2 30. Kxg2 {[%clk 00:00:56]} Nd5 {[%clk
00:00:37]} 31. Rd7 {[%clk 00:00:57]} {[%emt 00:00:02]} Bf8 {[%clk 00:00:38]} 32.
Rc4 {[%clk 00:00:52]} {[%emt 00:00:07]} Nf6 {[%clk 00:00:27]} {[%emt 00:00:13]}
33. Rd8 {[%clk 00:00:37]} {[%emt 00:00:17]} Nxc4 {[%clk 00:00:28]} {[%emt
00:00:02]} 34. dxc4 {[%clk 00:00:38]} Kg7 {[%clk 00:00:29]} 35. Rxd4 {[%clk
00:00:38]} {[%emt 00:00:01]} Be7 {[%clk 00:00:30]} 36. e4 {[%clk 00:00:37]}
{[%emt 00:00:04]} Kf8 {[%clk 00:00:27]} {[%emt 00:00:06]} 37. e5 {[%clk
00:00:38]} {[%emt 00:00:01]} Ng4 {[%clk 00:00:27]} {[%emt 00:00:02]} 38. Rd5
{[%clk 00:00:31]} {[%emt 00:00:09]} Ke8 {[%clk 00:00:27]} {[%emt 00:00:02]} 39.
h3 {[%clk 00:00:32]} {[%emt 00:00:01]} Nh6 {[%clk 00:00:28]} 40. Rb5 {[%clk
00:00:33]} {[%emt 00:00:01]} Bd8 {[%clk 00:00:29]} 41. c5 {[%clk 00:00:33]}
{[%emt 00:00:02]} Nf5 {[%clk 00:00:25]} {[%emt 00:00:06]} 42. cxb6 {[%clk
00:00:33]} {[%emt 00:00:02]} Nd4 {[%clk 00:00:27]} 43. Rd5 {[%clk 00:00:34]}
Nc2 {[%clk 00:00:26]} {[%emt 00:00:03]} 44. a4 {[%clk 00:00:30]} {[%emt
00:00:06]} Nxb4 {[%clk 00:00:27]} {[%emt 00:00:01]} 45. Rb5 {[%clk 00:00:31]}
{[%emt 00:00:01]} Nc6 {[%clk 00:00:27]} 46. a5 {[%clk 00:00:31]} {[%emt
00:00:02]} Kd7 {[%clk 00:00:28]} {[%emt 00:00:01]} 47. Rd5+ {[%clk 00:00:31]}
{[%emt 00:00:02]} Kc8 {[%clk 00:00:30]} 48. f4 {[%clk 00:00:30]} {[%emt
00:00:03]} Be7 {[%clk 00:00:31]} 49. g4 {[%clk 00:00:27]} {[%emt 00:00:05]}
hxg4 {[%clk 00:00:32]} 50. hxg4 {[%clk 00:00:29]} Bb4 {[%clk 00:00:33]} {[%emt
00:00:01]} 51. f5 {[%clk 00:00:29]} {[%emt 00:00:02]} gxf5 {[%clk 00:00:34]} 52.
gxf5 {[%clk 00:00:30]} {[%emt 00:00:01]} Bxa5 {[%emt 00:00:02]} 53. Rb5 {[%clk
00:00:27]} {[%emt 00:00:03]} Bb4 {[%clk 00:00:31]} {[%emt 00:00:06]} 54. Kg3
{[%clk 00:00:25]} {[%emt 00:00:04]} Bc3 {[%clk 00:00:29]} {[%emt 00:00:04]} 55.
Kf4 {[%clk 00:00:25]} {[%emt 00:00:02]} Kd7 {[%clk 00:00:29]} {[%emt 00:00:02]}
56. Rd5+ {[%clk 00:00:26]} {[%emt 00:00:01]} Ke7 {[%clk 00:00:30]} 57. f6+
{[%clk 00:00:25]} {[%emt 00:00:04]} Ke8 {[%clk 00:00:31]} {[%emt 00:00:01]} 58.
Kf5 {[%clk 00:00:24]} {[%emt 00:00:03]} Ba5 {[%clk 00:00:17]} {[%emt 00:00:16]}
59. e6 {[%clk 00:00:22]} {[%emt 00:00:04]} fxe6+ {[%clk 00:00:19]} {[%emt
00:00:01]} 60. Kxe6 {[%clk 00:00:23]} Bxb6 {[%clk 00:00:20]} 61. Rh5 {[%clk
00:00:24]} {[%emt 00:00:02]} Nd8+ {[%clk 00:00:21]} 62. Kd6 {[%clk 00:00:24]}
{[%emt 00:00:01]} Kf7 {[%clk 00:00:19]} {[%emt 00:00:04]} 63. Rb5 {[%clk
00:00:24]} {[%emt 00:00:03]} Bd4 {[%clk 00:00:17]} {[%emt 00:00:04]} 64. Kd7
{[%clk 00:00:24]} {[%emt 00:00:02]} Bxf6 {[%clk 00:00:18]} {[%emt 00:00:01]} 65.
Kc7 {[%clk 00:00:24]} {[%emt 00:00:02]} Ke8 {[%clk 00:00:12]} {[%emt 00:00:08]}
66. Rxb7 {[%clk 00:00:24]} {[%emt 00:00:01]} Be5+ {[%clk 00:00:13]} 67. Kc8
{[%clk 00:00:25]} {[%emt 00:00:02]} Nxb7 {[%clk 00:00:09]} {[%emt 00:00:06]} 68.
Kxb7 {[%emt 00:00:01]} 1/2-1/2

[Event "MČR v bleskovém šachu družstev 2019"]
[Site "Teplice, Czech Republic"]
[Date "2019.09.14"]
[Round "3.14"]
[White "Cernousek, Lukas"]
[Black "Sorm, Daniel"]
[Result "0-1"]
[TimeControl "3 mim. + 2 s"]
[WhiteTitle "IM"]
[BlackTitle "FM"]
[WhiteFideId "311707"]
[BlackFideId "5400139"]
[WhiteElo "2473"]
[BlackElo "2310"]

1. Nf3 {[%clk 00:03:03]} d5 2. e3 c5 {[%clk 00:03:03]} {[%emt 00:00:02]} 3. b3
{[%clk 00:03:05]} {[%emt 00:00:02]} Nc6 {[%clk 00:03:04]} {[%emt 00:00:01]} 4.
Bb2 {[%clk 00:03:06]} {[%emt 00:00:01]} e6 {[%clk 00:03:05]} {[%emt 00:00:01]}
5. Bb5 {[%clk 00:02:53]} {[%emt 00:00:15]} Nge7 {[%clk 00:03:06]} 6. d4 {[%clk
00:02:49]} {[%emt 00:00:06]} cxd4 {[%clk 00:03:02]} {[%emt 00:00:05]} 7. Nxd4
{[%clk 00:02:48]} {[%emt 00:00:02]} a6 {[%clk 00:03:00]} {[%emt 00:00:04]} 8.
Be2 {[%clk 00:02:44]} {[%emt 00:00:07]} Ng6 {[%clk 00:02:33]} {[%emt 00:00:28]}
9. O-O {[%clk 00:02:39]} {[%emt 00:00:08]} Bd6 {[%clk 00:02:32]} {[%emt
00:00:03]} 10. c4 {[%clk 00:02:20]} {[%emt 00:00:21]} O-O {[%clk 00:02:26]}
{[%emt 00:00:08]} 11. cxd5 {[%clk 00:02:20]} {[%emt 00:00:03]} exd5 {[%clk
00:02:25]} {[%emt 00:00:03]} 12. Nc3 {[%clk 00:02:20]} {[%emt 00:00:02]} Be6
{[%clk 00:01:54]} {[%emt 00:00:32]} 13. Rc1 {[%clk 00:02:17]} {[%emt 00:00:05]}
Qe7 {[%clk 00:01:25]} {[%emt 00:00:32]} 14. Bf3 {[%clk 00:01:21]} {[%emt
00:00:58]} Rad8 {[%clk 00:01:24]} {[%emt 00:00:02]} 15. g3 {[%clk 00:01:13]}
{[%emt 00:00:10]} Nge5 {[%clk 00:01:05]} {[%emt 00:00:21]} 16. Bg2 {[%clk
00:01:08]} {[%emt 00:00:07]} Nxd4 {[%clk 00:00:53]} {[%emt 00:00:14]} 17. Qxd4
{[%clk 00:00:56]} {[%emt 00:00:14]} Nc6 {[%clk 00:00:52]} {[%emt 00:00:02]} 18.
Nxd5 {[%clk 00:00:44]} {[%emt 00:00:14]} Qg5 {[%clk 00:00:38]} {[%emt
00:00:16]} 19. Qe4 {[%clk 00:00:13]} {[%emt 00:00:34]} Be5 {[%clk 00:00:13]}
{[%emt 00:00:27]} 20. Nf4 {[%clk 00:00:12]} {[%emt 00:00:04]} Bxb2 {[%clk
00:00:10]} {[%emt 00:00:05]} 21. Nxe6 {[%clk 00:00:07]} {[%emt 00:00:07]} fxe6
{[%clk 00:00:11]} 22. Qxe6+ {[%clk 00:00:08]} Kh8 {[%clk 00:00:12]} {[%emt
00:00:01]} 23. Rc2 {[%clk 00:00:08]} {[%emt 00:00:01]} Qf6 {[%clk 00:00:11]}
{[%emt 00:00:04]} 24. Qc4 {[%clk 00:00:06]} {[%emt 00:00:05]} Rc8 {[%clk
00:00:08]} {[%emt 00:00:05]} 25. Qa4 {[%clk 00:00:05]} {[%emt 00:00:03]} Be5
{[%clk 00:00:04]} {[%emt 00:00:07]} 26. Rfc1 {[%emt 00:00:02]} Qd6 {[%clk
00:00:03]} {[%emt 00:00:02]} 27. Bh3 {[%clk 00:00:06]} Rc7 {[%clk 00:00:04]}
{[%emt 00:00:01]} 28. f4 {[%clk 00:00:08]} Bf6 {[%clk 00:00:05]} {[%emt
00:00:01]} 29. e4 {[%clk 00:00:09]} Qd4+ {[%clk 00:00:05]} {[%emt 00:00:01]} 30.
Qxd4 {[%clk 00:00:09]} {[%emt 00:00:01]} Bxd4+ {[%clk 00:00:07]} 31. Kg2 {[%clk
00:00:10]} {[%emt 00:00:01]} Re7 {[%clk 00:00:08]} {[%emt 00:00:01]} 32. e5
{[%clk 00:00:11]} g5 {[%clk 00:00:08]} {[%emt 00:00:03]} 33. Rf1 {[%clk
00:00:08]} {[%emt 00:00:05]} gxf4 {[%clk 00:00:07]} {[%emt 00:00:03]} 34. gxf4
{[%clk 00:00:09]} Ref7 {[%clk 00:00:08]} {[%emt 00:00:02]} 35. Kg3 {[%clk
00:00:05]} {[%emt 00:00:06]} Nxe5 {[%emt 00:00:04]} 36. Rd1 {[%clk 00:00:03]}
{[%emt 00:00:03]} Nc6 {[%clk 00:00:05]} {[%emt 00:00:02]} 37. Be6 {[%clk
00:00:04]} {[%emt 00:00:02]} Re7 {[%clk 00:00:06]} {[%emt 00:00:01]} 38. f5
{[%clk 00:00:05]} {[%emt 00:00:01]} Be5+ {[%clk 00:00:06]} {[%emt 00:00:02]} 39.
Kf3 {[%clk 00:00:05]} Nd4+ {[%clk 00:00:06]} 40. Rxd4 {[%clk 00:00:05]} {[%emt
00:00:01]} Bxd4 {[%clk 00:00:06]} 41. Ke4 {[%clk 00:00:05]} Bb6 {[%clk
00:00:06]} {[%emt 00:00:02]} 42. Kd5 {[%clk 00:00:06]} {[%emt 00:04:33]} Kg7
{[%clk 00:00:07]} 43. Rg2+ {[%clk 00:00:06]} {[%emt 00:00:03]} Kf6 {[%clk
00:00:08]} 44. h4 {[%clk 00:00:07]} Rd8+ {[%clk 00:00:09]} {[%emt 00:00:01]} 45.
Ke4 {[%clk 00:00:08]} Rg7 {[%clk 00:00:10]} 46. Rc2 {[%clk 00:00:09]} {[%emt
00:00:02]} Rd4+ {[%clk 00:00:11]} {[%emt 00:00:01]} 47. Kf3 {[%clk 00:00:09]}
{[%emt 00:00:01]} Rd8 {[%clk 00:00:11]} {[%emt 00:00:02]} 48. h5 {[%clk
00:00:10]} {[%emt 00:00:02]} Rc7 {[%clk 00:00:11]} {[%emt 00:00:02]} 49. Rg2
{[%clk 00:00:09]} {[%emt 00:00:02]} Rd3+ {[%clk 00:00:10]} {[%emt 00:00:03]} 50.
Ke4 {[%clk 00:00:10]} {[%emt 00:00:02]} Rd4+ {[%clk 00:00:12]} 51. Kf3 {[%clk
00:00:11]} Rc2 {[%clk 00:00:15]} {[%emt 00:00:04]} 52. Rg5 {[%emt 00:00:04]}
Rg2 0-1

[Event "MČR v bleskovém šachu družstev 2019"]
[Site "Teplice, Czech Republic"]
[Date "2019.09.14"]
[Round "3.15"]
[White "Strasil, Pavel"]
[Black "Vrbata, Zbynek"]
[Result "0-1"]
[TimeControl "3 mim. + 2 s"]
[BlackTitle "FM"]
[WhiteFideId "308013"]
[BlackFideId "301256"]
[WhiteElo "2026"]
[BlackElo "2324"]

1. d4 {[%emt 00:21:16]} Nf6 {[%emt 00:00:02]} 2. c4 g6 {[%emt 00:00:01]} 3. Nc3
Bg7 4. e4 O-O {[%emt 00:00:02]} 5. Be2 d6 {[%emt 00:00:02]} 6. Bg5 {[%emt
00:00:01]} Nbd7 {[%emt 00:00:13]} 7. h4 {[%emt 00:00:03]} h6 {[%emt 00:00:12]}
8. Be3 {[%emt 00:00:02]} h5 {[%emt 00:00:07]} 9. Nh3 {[%emt 00:00:18]} c5
{[%emt 00:00:05]} 10. d5 {[%emt 00:00:03]} Ne5 {[%emt 00:00:01]} 11. f3 {[%emt
00:00:08]} a6 {[%emt 00:00:06]} 12. Qd2 {[%emt 00:00:05]} b5 {[%emt 00:00:04]}
13. Bh6 {[%emt 00:00:18]} bxc4 {[%emt 00:00:02]} 14. Bxg7 {[%emt 00:00:01]}
Kxg7 {[%emt 00:00:01]} 15. Ng5 {[%emt 00:00:14]} Rb8 {[%emt 00:00:05]} 16. g4
{[%emt 00:00:29]} hxg4 {[%emt 00:00:17]} 17. f4 {[%emt 00:00:29]} Nd3+ {[%emt
00:00:19]} 18. Bxd3 {[%emt 00:00:08]} cxd3 19. Qxd3 {[%emt 00:00:24]} Rxb2
{[%emt 00:00:13]} 20. Rb1 {[%emt 00:00:26]} Rxb1+ {[%emt 00:00:05]} 21. Nxb1
Qa5+ {[%emt 00:00:03]} 22. Qd2 {[%emt 00:00:03]} Qa4 {[%emt 00:00:19]} 23. Nc3
{[%emt 00:00:06]} Qc4 24. e5 {[%emt 00:00:06]} Nh5 {[%emt 00:00:14]} 25. Rf1
{[%emt 00:00:15]} Bf5 {[%emt 00:00:02]} 0-1

[Event "MČR v bleskovém šachu družstev 2019"]
[Site "Teplice, Czech Republic"]
[Date "2019.09.14"]
[Round "3.16"]
[White "Kuba, Jindrich"]
[Black "Krejci, Jan"]
[Result "1/2-1/2"]
[TimeControl "3 mim. + 2 s"]
[WhiteTitle "FM"]
[WhiteFideId "318248"]
[BlackFideId "316873"]
[WhiteElo "2223"]
[BlackElo "2048"]

1. e4 {[%clk 00:03:03]} e5 {[%clk 00:03:03]} {[%emt 00:00:01]} 2. Nf3 {[%clk
00:03:04]} {[%emt 00:00:01]} Nf6 {[%clk 00:03:04]} {[%emt 00:00:01]} 3. Nc3
{[%clk 00:03:03]} {[%emt 00:00:03]} Nc6 {[%clk 00:03:05]} 4. Bb5 {[%clk
00:03:04]} {[%emt 00:00:02]} Bb4 {[%clk 00:03:06]} {[%emt 00:00:01]} 5. d3
{[%clk 00:03:01]} {[%emt 00:00:04]} Nd4 {[%clk 00:03:06]} {[%emt 00:00:02]} 6.
Ba4 {[%clk 00:03:01]} {[%emt 00:00:02]} b5 {[%clk 00:02:43]} {[%emt 00:00:26]}
7. Bb3 {[%clk 00:03:01]} {[%emt 00:00:02]} Nxb3 {[%clk 00:02:42]} {[%emt
00:00:03]} 8. axb3 {[%clk 00:03:02]} {[%emt 00:00:01]} d6 {[%clk 00:02:42]}
{[%emt 00:00:02]} 9. h3 {[%clk 00:03:02]} {[%emt 00:00:03]} O-O {[%clk
00:02:41]} {[%emt 00:00:02]} 10. O-O {[%clk 00:03:02]} {[%emt 00:00:02]} c6
{[%clk 00:02:41]} {[%emt 00:00:03]} 11. Be3 {[%clk 00:02:49]} {[%emt 00:00:15]}
a6 {[%clk 00:02:35]} {[%emt 00:00:07]} 12. Ne2 {[%clk 00:02:33]} {[%emt
00:00:18]} h6 {[%clk 00:02:31]} {[%emt 00:00:07]} 13. Ng3 {[%clk 00:02:31]}
{[%emt 00:00:03]} Be6 {[%clk 00:02:29]} {[%emt 00:00:04]} 14. Nd2 {[%clk
00:02:23]} {[%emt 00:00:11]} Ba5 {[%clk 00:02:22]} {[%emt 00:00:08]} 15. Kh2
{[%emt 00:00:06]} Bc7 {[%clk 00:02:22]} 16. f4 {[%clk 00:02:18]} {[%emt
00:00:06]} exf4 {[%clk 00:02:17]} {[%emt 00:00:06]} 17. Bxf4 {[%clk 00:02:19]}
d5 {[%clk 00:02:13]} {[%emt 00:00:06]} 18. e5 {[%clk 00:02:14]} {[%emt
00:00:07]} Nd7 {[%clk 00:02:14]} {[%emt 00:00:02]} 19. d4 {[%clk 00:02:15]} c5
{[%clk 00:02:13]} {[%emt 00:00:03]} 20. c3 {[%clk 00:02:16]} {[%emt 00:00:01]}
cxd4 {[%clk 00:02:13]} {[%emt 00:00:01]} 21. cxd4 {[%clk 00:02:17]} f6 {[%clk
00:02:08]} {[%emt 00:00:09]} 22. Nf3 {[%clk 00:02:03]} {[%emt 00:00:15]} fxe5
{[%clk 00:02:03]} {[%emt 00:00:07]} 23. Bxe5 {[%clk 00:02:03]} {[%emt
00:00:02]} Nxe5 {[%clk 00:02:03]} {[%emt 00:00:02]} 24. Nxe5 {[%clk 00:02:04]}
{[%emt 00:00:01]} Qg5 {[%clk 00:01:56]} {[%emt 00:00:09]} 25. Qe2 {[%clk
00:01:53]} {[%emt 00:00:12]} Bxe5 {[%clk 00:01:42]} {[%emt 00:00:16]} 26. Qxe5
{[%clk 00:01:43]} {[%emt 00:00:12]} Qxe5 {[%clk 00:01:42]} {[%emt 00:00:02]} 27.
dxe5 {[%clk 00:01:44]} Rxf1 {[%clk 00:01:37]} {[%emt 00:00:08]} 28. Rxf1 {[%clk
00:01:44]} {[%emt 00:00:03]} Rc8 {[%clk 00:01:37]} {[%emt 00:00:02]} 29. Ne2
{[%clk 00:01:42]} {[%emt 00:00:05]} Rf8 {[%clk 00:01:20]} {[%emt 00:00:18]} 30.
Kg1 {[%clk 00:01:33]} {[%emt 00:00:10]} Rxf1+ {[%clk 00:01:20]} {[%emt
00:00:02]} 31. Kxf1 {[%clk 00:01:35]} Kf7 {[%clk 00:01:20]} {[%emt 00:00:03]}
32. Nd4 {[%clk 00:01:36]} {[%emt 00:00:01]} Bd7 {[%clk 00:01:21]} {[%emt
00:00:01]} 33. Kf2 {[%clk 00:01:36]} {[%emt 00:00:02]} Ke7 {[%clk 00:01:20]}
{[%emt 00:00:02]} 34. Ke3 {[%clk 00:01:37]} {[%emt 00:00:02]} g6 {[%clk
00:01:20]} {[%emt 00:00:02]} 35. h4 {[%clk 00:01:33]} {[%emt 00:00:06]} h5
{[%clk 00:01:19]} {[%emt 00:00:03]} 36. g3 {[%clk 00:01:34]} {[%emt 00:00:02]}
Bh3 {[%clk 00:01:18]} {[%emt 00:00:03]} 37. Kf4 {[%clk 00:01:34]} {[%emt
00:00:02]} Bf1 {[%clk 00:01:14]} {[%emt 00:00:06]} 38. g4 {[%clk 00:01:32]}
{[%emt 00:00:05]} hxg4 {[%clk 00:01:09]} {[%emt 00:00:07]} 39. Kxg4 {[%clk
00:01:33]} a5 {[%clk 00:01:09]} {[%emt 00:00:02]} 40. Nc6+ {[%clk 00:01:15]}
{[%emt 00:00:19]} Ke6 {[%clk 00:01:06]} {[%emt 00:00:04]} 41. Kf4 {[%clk
00:01:16]} {[%emt 00:00:01]} a4 {[%clk 00:01:05]} {[%emt 00:00:03]} 42. bxa4
{[%clk 00:01:17]} {[%emt 00:00:02]} bxa4 {[%clk 00:01:06]} {[%emt 00:00:01]} 43.
Nd4+ {[%clk 00:01:17]} {[%emt 00:00:01]} Ke7 {[%clk 00:01:06]} {[%emt
00:00:02]} 44. Kg5 {[%clk 00:01:10]} {[%emt 00:00:10]} Bd3 {[%clk 00:01:05]}
{[%emt 00:00:02]} 45. Kf4 {[%clk 00:01:04]} {[%emt 00:00:09]} Bb1 {[%clk
00:01:04]} {[%emt 00:00:02]} 46. Ne2 {[%clk 00:01:04]} {[%emt 00:00:03]} Ke6
{[%clk 00:01:01]} {[%emt 00:00:05]} 47. Nc3 {[%clk 00:01:04]} {[%emt 00:00:01]}
Bc2 {[%clk 00:01:01]} {[%emt 00:00:02]} 48. Nb5 {[%clk 00:01:06]} {[%emt
00:00:01]} Ke7 {[%clk 00:01:00]} {[%emt 00:00:03]} 49. Nc7 {[%clk 00:01:05]}
{[%emt 00:00:03]} d4 {[%clk 00:01:00]} {[%emt 00:00:02]} 50. Nb5 {[%clk
00:00:53]} {[%emt 00:00:14]} d3 {[%clk 00:00:59]} {[%emt 00:00:03]} 51. Ke3
{[%clk 00:00:53]} {[%emt 00:00:02]} Ke6 {[%clk 00:01:00]} 52. Nd4+ {[%clk
00:00:36]} {[%emt 00:00:20]} Kxe5 {[%clk 00:01:01]} {[%emt 00:00:01]} 53. Nf3+
{[%clk 00:00:38]} Kf5 {[%clk 00:01:02]} {[%emt 00:00:01]} 54. Kd2 {[%clk
00:00:22]} {[%emt 00:00:17]} Kg4 {[%clk 00:01:02]} {[%emt 00:00:02]} 55. Ne5+
{[%clk 00:00:23]} {[%emt 00:00:01]} Kh5 {[%clk 00:01:03]} 56. Kc3 {[%emt
00:00:26]} 1/2-1/2